[Event "26th Abu Dhabi Master 2019"]
[Site "Abu Dhabi"]
[Date "2019.08.08"]
[Round "7.21"]
[White "Onischuk, Vladimir"]
[Black "Alavi, Sayed Javad"]
[Result "1-0"]
[ECO "C50"]
[WhiteElo "2637"]
[BlackElo "2454"]
[Annotator "ChessBase"]
[PlyCount "107"]
[EventDate "2019.08.02"]
[EventType "swiss"]
[EventCountry "UAE"]
[SourceTitle "playchess.com"]
[Source "ChessBase"]
[SourceQuality "1"]
[TimeControl "5400+30"]

1. e4 {[%emt 0:00:00]} e5 {[%emt 0:01:05]} 2. Nf3 {[%emt 0:00:00]} Nc6 {[%emt 0:00:10]} 3. Bc4 {[%emt 0:00:02]} Bc5 {[%emt 0:00:14]} 4. d3 {[%emt 0:00:12]} Nf6 {[%emt 0:00:13]} 5. O-O {[%emt 0:00:36]} O-O {[%emt 0:00:49]} 6. Nbd2 {[%emt 0:00:41]} d6 {[%emt 0:01:23]} 7. c3 {[%emt 0:00:08]} a6 {[%emt 0:00:15]} 8. Bb3 {[%emt 0:00:22]} Ba7 {[%emt 0:00:07]} 9. h3 {[%emt 0:00:12]} Be6 {[%emt 0:05:12]} 10. Bc2 {[%emt 0:02:12]} h6 {[%emt 0:02:43]} 11. Re1 {[%emt 0:00:13]} Re8 {[%emt 0:02:16]} 12. Nf1 {[%emt 0:00:30]} d5 {[%emt 0:02:20]} 13. exd5 {[%emt 0:00:07]} Bxd5 {[%emt 0:11:39]} 14. Ng3 {[%emt 0:00:17]} Qd7 {[%emt 0:01:05]} 15. b4 {[%emt 0:00:36]} b5 {[%emt 0:03:57]} 16. a4 {[%emt 0:00:50]} Rad8 {[%emt 0:08:05]} 17. axb5 {[%emt 0:00:59]} axb5 {[%emt 0:00:01]} 18. Rxa7 {[%emt 0:00:08]} Nxa7 {[%emt 0:00:10]} 19. Nxe5 {[%emt 0:00:17]} Qc8 {[%emt 0:00:16]} 20. d4 {[%emt 0:01:02]} Nc6 {[%emt 0:03:26]} 21. Bf4 {[%emt 0:00:34]} Qa6 {[%emt 0:24:38]} 22. Nf5 {[%emt 0:11:18]} Ne7 {[%emt 0:04:58]} 23. Qd2 {[%emt 0:33:25]} Nxf5 {[%emt 0:00:39]} 24. Bxf5 {[%emt 0:00:03]} Nh7 {[%emt 0:12:32]} 25. Re3 {[%emt 0:04:46]} Nf8 {[%emt 0:00:34]} 26. Rg3 {[%emt 0:00:13]} Kh8 {[%emt 0:00:41]} 27. Bd3 {[%emt 0:07:20]} Ra8 {[%emt 0:03:01]} 28. Kh2 {[%emt 0:00:50]} Rab8 {[%emt 0:05:54]} 29. Ng4 {[%emt 0:03:52]} Rb7 {[%emt 0:02:42]} 30. Be5 {[%emt 0:00:51]} Rxe5 {[%emt 0:00:01]} 31. Nxe5 {[%emt 0:00:19]} Qf6 {[%emt 0:00:51]} 32. Qe3 {[%emt 0:00:58]} Rb8 {[%emt 0:01:23]} 33. Be4 {[%emt 0:00:22]} Qe6 {[%emt 0:00:09]} 34. Bxd5 {[%emt 0:04:20]} Qxd5 {[%emt 0:00:01]} 35. Qf4 {[%emt 0:00:40]} f6 {[%emt 0:00:26]} 36. Qg4 {[%emt 0:00:07]} Qg8 {[%emt 0:01:03]} 37. Nd7 {[%emt 0:00:37]} Rd8 {[%emt 0:01:33]} 38. Nxf6 {[%emt 0:00:09]} Qf7 {[%emt 0:00:00]} 39. Nh5 {[%emt 0:01:52]} g6 {[%emt 0:00:39]} 40. Nf4 {[%emt 0:00:11]} Kh7 {[%emt 0:00:02]} 41. Rf3 {[%emt 0:00:23]} Qe7 {[%emt 0:00:34]} 42. Nd3 {[%emt 0:00:35]} Nd7 {[%emt 0:01:05]} 43. Qg3 {[%emt 0:00:26]} Qd6 {[%emt 0:00:37]} 44. Ne5 {[%emt 0:00:45]} Rg8 {[%emt 0:00:51]} 45. Rf7+ {[%emt 0:03:09]} Rg7 {[%emt 0:00:01]} 46. Qf4 {[%emt 0:00:26]} Qe6 {[%emt 0:00:27]} 47. Rxg7+ {[%emt 0:02:19]} Kxg7 {[%emt 0:00:01]} 48. Qe4 {[%emt 0:01:53]} Nb6 {[%emt 0:00:38]} 49. Qb7 {[%emt 0:02:04]} Qd6 {[%emt 0:00:28]} 50. g3 {[%emt 0:00:37]} g5 {[%emt 0:00:42]} 51. Qb8 {[%emt 0:00:36]} Qe7 {[%emt 0:00:30]} 52. Kg2 {[%emt 0:00:24]} Qd6 {[%emt 0:01:54]} 53. Qe8 {[%emt 0:00:44]} Qd5+ {[%emt 0:00:02]} 54. Kg1 {[%emt 0:00:19]} 1-0

[Event "26th Abu Dhabi Master 2019"]
[Site "Abu Dhabi"]
[Date "2019.08.08"]
[Round "7.22"]
[White "Idani, Pouya"]
[Black "Gaponenko, Inna"]
[Result "1-0"]
[ECO "B32"]
[WhiteElo "2595"]
[BlackElo "2450"]
[Annotator "ChessBase"]
[PlyCount "155"]
[EventDate "2019.08.02"]
[EventType "swiss"]
[EventCountry "UAE"]
[SourceTitle "playchess.com"]
[Source "ChessBase"]
[SourceQuality "1"]
[TimeControl "5400+30"]

1. e4 {[%emt 0:00:00]} c5 {[%emt 0:00:00]} 2. Nf3 {[%emt 0:00:00]} Nc6 {[%emt 0:00:00]} 3. d4 {[%emt 0:00:00]} cxd4 {[%emt 0:00:00]} 4. Nxd4 {[%emt 0:00:00]} e5 {[%emt 0:04:02]} 5. Nb5 {[%emt 0:00:01]} d6 {[%emt 0:00:10]} 6. N1c3 {[%emt 0:01:29]} a6 {[%emt 0:00:24]} 7. Na3 {[%emt 0:00:05]} b5 {[%emt 0:01:38]} 8. Nd5 {[%emt 0:00:40]} Nge7 {[%emt 0:00:20]} 9. c4 {[%emt 0:00:10]} Nxd5 {[%emt 0:01:03]} 10. exd5 {[%emt 0:00:07]} Nd4 {[%emt 0:00:21]} 11. cxb5 {[%emt 0:00:05]} Bd7 {[%emt 0:05:08]} 12. bxa6 {[%emt 0:00:29]} Qa5+ {[%emt 0:00:45]} 13. Bd2 {[%emt 0:01:25]} Qxd5 {[%emt 0:00:16]} 14. Be3 {[%emt 0:03:20]} Be7 {[%emt 0:35:41]} 15. Bxd4 {[%emt 0:08:12]} exd4 {[%emt 0:00:11]} 16. Be2 {[%emt 0:00:11]} Bc6 {[%emt 0:31:34]} 17. Bf3 {[%emt 0:01:54]} Qa5+ {[%emt 0:09:44]} 18. Qd2 {[%emt 0:04:19]} Qe5+ {[%emt 0:00:02]} 19. Kd1 {[%emt 0:02:38]} Bxf3+ {[%emt 0:00:39]} 20. gxf3 {[%emt 0:00:05]} O-O {[%emt 0:01:45]} 21. Re1 {[%emt 0:03:06]} Qf6 {[%emt 0:00:02]} 22. Qd3 {[%emt 0:02:10]} d5 {[%emt 0:02:41]} 23. Nc2 {[%emt 0:03:50]} Bd6 {[%emt 0:00:01]} 24. a3 {[%emt 0:03:59]} Rfb8 {[%emt 0:03:17]} 25. Ra2 {[%emt 0:01:11]} Rb6 {[%emt 0:00:40]} 26. Nxd4 {[%emt 0:06:59]} Rbxa6 27. Nb5 {[%emt 0:03:21]} Be5 {[%emt 0:02:16]} 28. b3 {[%emt 0:01:59]} Re6 {[%emt 0:00:43]} 29. h3 {[%emt 0:02:40]} h5 {[%emt 0:00:07]} 30. Rae2 {[%emt 0:02:52]} Rae8 {[%emt 0:00:19]} 31. Kc2 {[%emt 0:02:14]} Qh4 {[%emt 0:01:01]} 32. a4 {[%emt 0:09:17]} Qxh3 {[%emt 0:00:31]} 33. Nd4 {[%emt 0:05:11]} Bxd4 {[%emt 0:00:14]} 34. Rxe6 {[%emt 0:00:05]} Rxe6 {[%emt 0:00:47]} 35. Rxe6 {[%emt 0:00:05]} Qxe6 {[%emt 0:00:28]} 36. Qxd4 {[%emt 0:00:07]} Qe2+ {[%emt 0:00:08]} 37. Kc3 {[%emt 0:01:37]} Qe1+ {[%emt 0:00:44]} 38. Kb2 {[%emt 0:02:06]} g5 {[%emt 0:00:10]} 39. Qxd5 {[%emt 0:00:59]} Qxf2+ {[%emt 0:00:03]} 40. Ka3 {[%emt 0:00:06]} Qe3 {[%emt 0:00:07]} 41. a5 {[%emt 0:01:36]} h4 {[%emt 0:00:11]} 42. Qf5 {[%emt 0:01:51]} Qc1+ {[%emt 0:01:18]} 43. Ka4 {[%emt 0:00:36]} Qc6+ {[%emt 0:00:47]} 44. Kb4 {[%emt 0:05:54]} Qd6+ 45. Kb5 {[%emt 0:01:12]} Qb8+ {[%emt 0:00:58]} 46. Ka4 {[%emt 0:00:15]} Qe8+ {[%emt 0:00:39]} 47. Ka3 {[%emt 0:00:08]} Qe7+ {[%emt 0:01:01]} 48. b4 {[%emt 0:00:12]} Qe3+ {[%emt 0:00:18]} 49. Ka4 {[%emt 0:00:08]} Qd2 {[%emt 0:00:28]} 50. a6 {[%emt 0:01:18]} h3 {[%emt 0:00:42]} 51. Qxh3 {[%emt 0:01:45]} Qa2+ {[%emt 0:00:04]} 52. Kb5 {[%emt 0:00:04]} Qd5+ {[%emt 0:00:11]} 53. Kb6 {[%emt 0:00:07]} Qd8+ {[%emt 0:00:55]} 54. Kc5 {[%emt 0:02:45]} Qc7+ {[%emt 0:00:48]} 55. Kd5 {[%emt 0:01:23]} Qd8+ {[%emt 0:00:33]} 56. Kc4 {[%emt 0:00:30]} Qc7+ {[%emt 0:00:29]} 57. Kb3 {[%emt 0:00:06]} Qc6 {[%emt 0:00:34]} 58. Qf5 {[%emt 0:00:13]} Qxa6 {[%emt 0:00:20]} 59. Qxg5+ {[%emt 0:00:07]} Kf8 {[%emt 0:00:34]} 60. Qd8+ {[%emt 0:00:43]} Kg7 {[%emt 0:00:02]} 61. Qd5 {[%emt 0:00:05]} Qa1 {[%emt 0:00:52]} 62. b5 {[%emt 0:00:18]} Qb1+ {[%emt 0:00:25]} 63. Ka4 {[%emt 0:01:49]} Qa1+ {[%emt 0:00:13]} 64. Kb4 {[%emt 0:00:05]} Qe1+ {[%emt 0:00:27]} 65. Kc5 {[%emt 0:00:11]} Qe7+ {[%emt 0:00:48]} 66. Qd6 {[%emt 0:01:41]} Qa7+ {[%emt 0:00:45]} 67. Kb4 {[%emt 0:00:23]} Qe3 {[%emt 0:00:15]} 68. f4 {[%emt 0:00:08]} Qe1+ {[%emt 0:00:49]} 69. Kc5 {[%emt 0:00:11]} Qc3+ {[%emt 0:00:20]} 70. Kb6 {[%emt 0:00:11]} Qc4 {[%emt 0:00:29]} 71. Qe5+ {[%emt 0:00:42]} Kg6 {[%emt 0:00:10]} 72. f5+ {[%emt 0:03:46]} Kg5 {[%emt 0:00:18]} 73. Qc5 {[%emt 0:00:05]} Qe4 {[%emt 0:01:06]} 74. Kc7 {[%emt 0:00:23]} Qf4+ {[%emt 0:00:35]} 75. Kc8 {[%emt 0:00:12]} Kf6 {[%emt 0:00:30]} 76. b6 {[%emt 0:00:17]} Qa4 {[%emt 0:00:31]} 77. Qd6+ {[%emt 0:00:19]} Kg7 {[%emt 0:00:24]} 78. b7 1-0

[Event "26th Abu Dhabi Master 2019"]
[Site "Abu Dhabi"]
[Date "2019.08.08"]
[Round "7.23"]
[White "Praggnanandhaa R"]
[Black "Akash Pc, Iyer"]
[Result "1/2-1/2"]
[ECO "B12"]
[WhiteElo "2540"]
[BlackElo "2441"]
[Annotator "ChessBase"]
[PlyCount "133"]
[EventDate "2019.08.02"]
[EventType "swiss"]
[EventCountry "UAE"]
[SourceTitle "playchess.com"]
[Source "ChessBase"]
[SourceQuality "1"]
[TimeControl "5400+30"]

1. e4 {[%emt 0:00:05]} c6 2. d4 {[%emt 0:00:07]} d5 {[%emt 0:00:00]} 3. e5 {[%emt 0:00:15]} Bf5 {[%emt 0:00:00]} 4. Nd2 {[%emt 0:00:08]} e6 {[%emt 0:00:00]} 5. Nb3 {[%emt 0:00:07]} Ne7 {[%emt 0:06:20]} 6. Nf3 {[%emt 0:01:00]} Bg4 {[%emt 0:14:01]} 7. h3 {[%emt 0:09:20]} Bxf3 {[%emt 0:01:09]} 8. Qxf3 {[%emt 0:00:06]} Ng6 {[%emt 0:01:25]} 9. h4 {[%emt 0:03:01]} Nxh4 {[%emt 0:08:10]} 10. Qh3 {[%emt 0:10:21]} Be7 {[%emt 0:04:36]} 11. Bd3 {[%emt 0:04:32]} Nd7 {[%emt 0:03:33]} 12. g3 {[%emt 0:18:28]} Nf3+ {[%emt 0:04:11]} 13. Ke2 {[%emt 0:00:35]} Ng5 {[%emt 0:00:54]} 14. Bxg5 {[%emt 0:12:17]} Bxg5 {[%emt 0:00:13]} 15. f4 {[%emt 0:00:06]} Be7 {[%emt 0:00:11]} 16. f5 {[%emt 0:00:53]} exf5 {[%emt 0:07:47]} 17. Qxf5 {[%emt 0:01:03]} g6 {[%emt 0:01:21]} 18. Qf3 {[%emt 0:05:01]} Bg5 {[%emt 0:04:00]} 19. Raf1 {[%emt 0:03:34]} Qe7 {[%emt 0:00:15]} 20. Kd1 {[%emt 0:00:09]} Nf8 {[%emt 0:07:58]} 21. Rh2 {[%emt 0:03:08]} Ne6 {[%emt 0:00:48]} 22. Qh1 {[%emt 0:02:15]} h6 {[%emt 0:08:13]} 23. Rhf2 {[%emt 0:02:04]} O-O {[%emt 0:00:44]} 24. c3 {[%emt 0:02:06]} Rad8 {[%emt 0:04:12]} 25. Be2 {[%emt 0:04:38]} c5 {[%emt 0:01:58]} 26. Bg4 {[%emt 0:00:42]} cxd4 {[%emt 0:02:15]} 27. cxd4 {[%emt 0:00:07]} b6 {[%emt 0:06:46]} 28. Qh3 {[%emt 0:04:10]} Ng7 {[%emt 0:02:47]} 29. Qh1 {[%emt 0:01:22]} a5 {[%emt 0:00:34]} 30. Qf3 {[%emt 0:01:52]} f5 {[%emt 0:02:28]} 31. exf6 {[%emt 0:02:18]} Rxf6 {[%emt 0:00:02]} 32. Qd3 {[%emt 0:00:22]} Rxf2 {[%emt 0:00:07]} 33. Rxf2 {[%emt 0:00:01]} Qe4 {[%emt 0:00:41]} 34. Qxe4 {[%emt 0:00:47]} dxe4 {[%emt 0:00:02]} 35. a4 {[%emt 0:00:37]} Rf8 {[%emt 0:06:08]} 36. Rc2 {[%emt 0:01:52]} h5 {[%emt 0:00:10]} 37. Bh3 {[%emt 0:00:03]} Rf3 {[%emt 0:00:16]} 38. Rc3 {[%emt 0:00:04]} e3 {[%emt 0:00:37]} 39. Nd2 {[%emt 0:00:10]} Rxg3 {[%emt 0:01:04]} 40. Ne4 {[%emt 0:01:03]} Rg1+ {[%emt 0:02:29]} 41. Ke2 {[%emt 0:00:05]} Nf5 {[%emt 0:00:23]} 42. Rc8+ {[%emt 0:02:07]} Kg7 {[%emt 0:00:09]} 43. Rc7+ {[%emt 0:02:33]} Kh6 {[%emt 0:00:39]} 44. Bxf5 {[%emt 0:00:15]} gxf5 {[%emt 0:01:18]} 45. Nxg5 {[%emt 0:00:07]} Rxg5 {[%emt 0:00:07]} 46. Kxe3 {[%emt 0:00:14]} h4 {[%emt 0:00:28]} 47. Rc8 {[%emt 0:01:53]} Rh5 {[%emt 0:00:49]} 48. Kf2 {[%emt 0:01:37]} f4 {[%emt 0:00:54]} 49. Rc6+ {[%emt 0:00:58]} Kg7 {[%emt 0:00:30]} 50. Rxb6 {[%emt 0:00:58]} h3 {[%emt 0:00:01]} 51. Rb5 {[%emt 0:00:09]} Rh4 {[%emt 0:00:34]} 52. Kg1 {[%emt 0:01:03]} h2+ {[%emt 0:00:17]} 53. Kh1 {[%emt 0:00:01]} Kf6 {[%emt 0:00:10]} 54. Re5 {[%emt 0:01:18]} f3 {[%emt 0:00:47]} 55. Re3 {[%emt 0:00:04]} Rh3 {[%emt 0:00:36]} 56. Re8 {[%emt 0:00:04]} Kf5 {[%emt 0:00:54]} 57. d5 {[%emt 0:00:05]} Kg4 {[%emt 0:00:39]} 58. Rg8+ {[%emt 0:01:26]} Kf4 {[%emt 0:00:01]} 59. d6 {[%emt 0:01:32]} Rh7 {[%emt 0:01:04]} 60. Re8 {[%emt 0:00:54]} Rd7 {[%emt 0:00:35]} 61. Kxh2 {[%emt 0:00:23]} Rxd6 {[%emt 0:00:04]} 62. Kg1 {[%emt 0:00:05]} Rd1+ {[%emt 0:00:17]} 63. Kf2 {[%emt 0:00:01]} Rd2+ {[%emt 0:00:01]} 64. Kf1 {[%emt 0:00:01]} Rxb2 {[%emt 0:00:01]} 65. Rf8+ {[%emt 0:00:11]} Ke3 {[%emt 0:00:08]} 66. Re8+ {[%emt 0:00:04]} Kd3 {[%emt 0:00:20]} 67. Re5 {[%emt 0:00:15]} 1/2-1/2

[Event "26th Abu Dhabi Master 2019"]
[Site "Abu Dhabi"]
[Date "2019.08.08"]
[Round "7.24"]
[White "Santos Ruiz, Miguel"]
[Black "Suleymanli, Aydin"]
[Result "1/2-1/2"]
[ECO "D11"]
[WhiteElo "2567"]
[BlackElo "2416"]
[Annotator "ChessBase"]
[PlyCount "43"]
[EventDate "2019.08.02"]
[EventType "swiss"]
[EventCountry "UAE"]
[SourceTitle "playchess.com"]
[Source "ChessBase"]
[SourceQuality "1"]
[TimeControl "5400+30"]

1. d4 {[%emt 0:00:00]} d5 {[%emt 0:00:00]} 2. c4 {[%emt 0:00:00]} c6 {[%emt 0:00:00]} 3. Nf3 {[%emt 0:00:00]} Nf6 {[%emt 0:00:00]} 4. e3 {[%emt 0:00:00]} e6 {[%emt 0:00:00]} 5. b3 {[%emt 0:00:00]} c5 {[%emt 0:00:01]} 6. Bb2 {[%emt 0:00:00]} cxd4 {[%emt 0:00:23]} 7. Nxd4 Be7 {[%emt 0:01:32]} 8. Nc3 {[%emt 0:06:17]} O-O {[%emt 0:00:16]} 9. Be2 {[%emt 0:09:22]} dxc4 {[%emt 0:02:05]} 10. Bxc4 {[%emt 0:00:04]} Bd7 {[%emt 0:00:43]} 11. O-O {[%emt 0:01:23]} Nc6 {[%emt 0:00:05]} 12. Nf3 {[%emt 0:00:31]} Qa5 {[%emt 0:02:22]} 13. a3 {[%emt 0:11:33]} Rfd8 {[%emt 0:00:55]} 14. b4 {[%emt 0:00:43]} Qh5 {[%emt 0:03:39]} 15. Be2 {[%emt 0:06:01]} Rac8 {[%emt 0:19:52]} 16. Rc1 {[%emt 0:06:09]} a6 {[%emt 0:11:01]} 17. Na4 {[%emt 0:07:09]} Be8 {[%emt 0:05:15]} 18. Qb3 {[%emt 0:11:58]} b5 {[%emt 0:01:22]} 19. Nc3 {[%emt 0:05:33]} a5 {[%emt 0:07:49]} 20. Nxb5 {[%emt 0:03:34]} axb4 {[%emt 0:00:56]} 21. Nfd4 {[%emt 0:08:18]} Nxd4 {[%emt 0:00:30]} 22. Nxd4 {[%emt 0:00:09]} 1/2-1/2

[Event "26th Abu Dhabi Master 2019"]
[Site "Abu Dhabi"]
[Date "2019.08.08"]
[Round "7.25"]
[White "Shevchenko, Kirill"]
[Black "Vaishali R"]
[Result "1-0"]
[ECO "A28"]
[WhiteElo "2536"]
[BlackElo "2344"]
[Annotator "ChessBase"]
[PlyCount "73"]
[EventDate "2019.08.02"]
[EventType "swiss"]
[EventCountry "UAE"]
[SourceTitle "playchess.com"]
[Source "ChessBase"]
[SourceQuality "1"]
[TimeControl "5400+30"]

1. c4 {[%emt 0:00:00]} e5 {[%emt 0:00:11]} 2. Nc3 {[%emt 0:00:00]} Nf6 {[%emt 0:00:06]} 3. Nf3 {[%emt 0:00:00]} Nc6 {[%emt 0:00:05]} 4. e4 {[%emt 0:00:02]} Bb4 {[%emt 0:00:05]} 5. d3 {[%emt 0:00:36]} d6 {[%emt 0:00:05]} 6. a3 {[%emt 0:00:35]} Bc5 {[%emt 0:00:02]} 7. b4 {[%emt 0:01:28]} Bb6 {[%emt 0:00:14]} 8. Na4 {[%emt 0:00:17]} Bd4 {[%emt 0:02:25]} 9. Nxd4 {[%emt 0:06:59]} Nxd4 {[%emt 0:00:08]} 10. Nc3 {[%emt 0:06:06]} O-O {[%emt 0:04:53]} 11. Ne2 {[%emt 0:14:55]} Bg4 {[%emt 0:07:03]} 12. f3 {[%emt 0:21:55]} Bd7 {[%emt 0:19:35]} 13. Nxd4 {[%emt 0:03:28]} exd4 {[%emt 0:00:03]} 14. Be2 {[%emt 0:02:10]} Ne8 {[%emt 0:08:25]} 15. O-O {[%emt 0:06:16]} f5 {[%emt 0:07:08]} 16. c5 {[%emt 0:05:22]} Qe7 {[%emt 0:07:10]} 17. Bb2 {[%emt 0:07:03]} dxc5 {[%emt 0:04:19]} 18. bxc5 {[%emt 0:00:33]} Qxc5 {[%emt 0:01:24]} 19. Qb3+ {[%emt 0:00:09]} Kh8 {[%emt 0:00:08]} 20. Qxb7 {[%emt 0:03:10]} Nd6 {[%emt 0:02:04]} 21. Qb4 {[%emt 0:00:39]} Qxb4 {[%emt 0:01:47]} 22. axb4 {[%emt 0:00:05]} Nb5 {[%emt 0:03:05]} 23. Rfc1 {[%emt 0:02:16]} c6 {[%emt 0:03:02]} 24. Bd1 {[%emt 0:02:40]} Rfb8 {[%emt 0:08:29]} 25. Rc4 {[%emt 0:02:01]} Kg8 {[%emt 0:02:26]} 26. Ra5 {[%emt 0:06:56]} Kf7 {[%emt 0:05:29]} 27. Ba4 {[%emt 0:01:15]} fxe4 {[%emt 0:01:22]} 28. fxe4 {[%emt 0:01:30]} Rb7 {[%emt 0:05:37]} 29. Bxd4 {[%emt 0:02:15]} Be6 {[%emt 0:00:26]} 30. Bxb5 {[%emt 0:00:27]} cxb5 {[%emt 0:00:10]} 31. Rc3 {[%emt 0:00:05]} Rd7 {[%emt 0:02:31]} 32. Bc5 {[%emt 0:00:20]} a6 {[%emt 0:00:25]} 33. Kf2 {[%emt 0:00:34]} h5 {[%emt 0:00:19]} 34. Ke3 {[%emt 0:00:36]} h4 {[%emt 0:00:18]} 35. Rca3 {[%emt 0:01:33]} Re8 {[%emt 0:01:02]} 36. Rxa6 {[%emt 0:00:22]} Bd5 {[%emt 0:00:06]} 37. Ra7 {[%emt 0:00:27]} 1-0

[Event "26th Abu Dhabi Master 2019"]
[Site "Abu Dhabi"]
[Date "2019.08.08"]
[Round "7.26"]
[White "Xu, Yi"]
[Black "Assaubayeva, Bibisara"]
[Result "1-0"]
[ECO "C90"]
[WhiteElo "2524"]
[BlackElo "2375"]
[Annotator "ChessBase"]
[PlyCount "85"]
[EventDate "2019.08.02"]
[EventType "swiss"]
[EventCountry "UAE"]
[SourceTitle "playchess.com"]
[Source "ChessBase"]
[SourceQuality "1"]
[TimeControl "5400+30"]

1. e4 {[%emt 0:02:54]} e5 {[%emt 0:00:00]} 2. Nf3 {[%emt 0:00:06]} Nc6 {[%emt 0:00:00]} 3. Bb5 {[%emt 0:00:05]} a6 {[%emt 0:00:00]} 4. Ba4 {[%emt 0:00:04]} Nf6 {[%emt 0:00:07]} 5. O-O {[%emt 0:00:06]} Be7 {[%emt 0:00:14]} 6. Re1 {[%emt 0:00:11]} b5 {[%emt 0:00:05]} 7. Bb3 {[%emt 0:00:04]} O-O {[%emt 0:00:15]} 8. d3 {[%emt 0:07:20]} d6 {[%emt 0:00:21]} 9. c3 {[%emt 0:00:18]} Re8 {[%emt 0:04:28]} 10. Nbd2 {[%emt 0:02:03]} Bf8 {[%emt 0:00:19]} 11. Nf1 {[%emt 0:04:13]} Bb7 {[%emt 0:03:14]} 12. Ng3 {[%emt 0:02:04]} Na5 {[%emt 0:05:17]} 13. Bc2 {[%emt 0:02:55]} c5 {[%emt 0:01:32]} 14. d4 {[%emt 0:14:07]} cxd4 {[%emt 0:05:32]} 15. cxd4 {[%emt 0:00:08]} exd4 {[%emt 0:04:06]} 16. Nxd4 {[%emt 0:06:11]} g6 {[%emt 0:03:26]} 17. b3 {[%emt 0:04:40]} Bg7 {[%emt 0:03:52]} 18. Bb2 {[%emt 0:00:26]} h5 {[%emt 0:08:25]} 19. Qd2 {[%emt 0:13:00]} h4 {[%emt 0:11:32]} 20. Ngf5 {[%emt 0:01:15]} gxf5 {[%emt 0:02:28]} 21. Nxf5 {[%emt 0:00:18]} Re6 {[%emt 0:03:06]} 22. Rad1 {[%emt 0:10:41]} Ne8 {[%emt 0:05:17]} 23. Nxg7 {[%emt 0:00:54]} Nxg7 {[%emt 0:00:02]} 24. f4 {[%emt 0:00:07]} Rg6 {[%emt 0:05:28]} 25. f5 {[%emt 0:06:41]} Rg4 {[%emt 0:02:40]} 26. h3 {[%emt 0:01:05]} Rg3 {[%emt 0:01:57]} 27. Re3 {[%emt 0:04:13]} Rg5 {[%emt 0:04:26]} 28. Rd3 {[%emt 0:03:04]} Ne8 {[%emt 0:05:51]} 29. Qf4 {[%emt 0:01:27]} Rh5 {[%emt 0:04:03]} 30. Qf3 {[%emt 0:03:56]} Rg5 {[%emt 0:04:00]} 31. Qf4 {[%emt 0:00:02]} Rh5 {[%emt 0:02:46]} 32. f6 {[%emt 0:05:00]} Qc8 {[%emt 0:00:36]} 33. Kh1 {[%emt 0:01:34]} Kf8 {[%emt 0:02:54]} 34. R1d2 {[%emt 0:01:18]} Nc6 {[%emt 0:01:03]} 35. Bd1 {[%emt 0:00:26]} Rh8 {[%emt 0:01:42]} 36. Qg5 {[%emt 0:00:21]} Ne5 {[%emt 0:00:54]} 37. Rxd6 {[%emt 0:01:17]} Ng6 {[%emt 0:00:09]} 38. Bg4 {[%emt 0:00:53]} Qb8 {[%emt 0:01:45]} 39. Ba3 {[%emt 0:01:03]} Kg8 {[%emt 0:00:36]} 40. Bf5 {[%emt 0:01:45]} Rh7 {[%emt 0:03:35]} 41. Bxg6 {[%emt 0:00:11]} fxg6 {[%emt 0:00:07]} 42. Qxg6+ {[%emt 0:00:16]} Kh8 {[%emt 0:00:18]} 43. Rd7 {[%emt 0:00:31]} 1-0

[Event "26th Abu Dhabi Master 2019"]
[Site "Abu Dhabi"]
[Date "2019.08.08"]
[Round "7.27"]
[White "Dimakiling, Oliver"]
[Black "Nguyen, Anh Khoi"]
[Result "0-1"]
[ECO "A05"]
[WhiteElo "2403"]
[BlackElo "2516"]
[Annotator "ChessBase"]
[PlyCount "60"]
[EventDate "2019.08.02"]
[EventType "swiss"]
[EventCountry "UAE"]
[SourceTitle "playchess.com"]
[Source "ChessBase"]
[SourceQuality "1"]
[TimeControl "5400+30"]

1. Nf3 {[%emt 0:01:51]} Nf6 {[%emt 0:00:00]} 2. b3 {[%emt 0:00:14]} g6 {[%emt 0:00:00]} 3. g3 {[%emt 0:00:14]} Bg7 {[%emt 0:00:05]} 4. Bb2 {[%emt 0:00:09]} O-O {[%emt 0:00:40]} 5. Bg2 {[%emt 0:00:09]} d5 {[%emt 0:03:03]} 6. O-O {[%emt 0:00:31]} c5 {[%emt 0:00:05]} 7. e3 {[%emt 0:00:17]} Nc6 {[%emt 0:01:18]} 8. d4 {[%emt 0:00:29]} cxd4 {[%emt 0:02:26]} 9. exd4 {[%emt 0:00:35]} Bf5 {[%emt 0:01:42]} 10. Nc3 {[%emt 0:04:08]} Nb4 {[%emt 0:05:09]} 11. a3 {[%emt 0:03:16]} Nc6 {[%emt 0:00:14]} 12. Re1 {[%emt 0:04:03]} Rc8 {[%emt 0:01:31]} 13. Ne5 {[%emt 0:02:25]} e6 {[%emt 0:13:08]} 14. g4 {[%emt 0:08:24]} Nxe5 {[%emt 0:09:26]} 15. gxf5 {[%emt 0:01:25]} Neg4 {[%emt 0:01:56]} 16. h3 {[%emt 0:00:27]} Nh6 {[%emt 0:06:47]} 17. fxe6 {[%emt 0:00:35]} Nf5 {[%emt 0:01:58]} 18. Qd3 {[%emt 0:03:20]} fxe6 {[%emt 0:09:37]} 19. Rxe6 {[%emt 0:00:56]} Nh4 {[%emt 0:02:53]} 20. Bh1 {[%emt 0:00:35]} Nh5 {[%emt 0:04:14]} 21. Ne2 {[%emt 0:02:11]} Qg5+ {[%emt 0:02:50]} 22. Kf1 {[%emt 0:00:26]} Nf5 {[%emt 0:07:22]} 23. Ke1 {[%emt 0:05:38]} Kh8 {[%emt 0:04:43]} 24. Bxd5 {[%emt 0:08:28]} Rce8 {[%emt 0:05:35]} 25. Re5 {[%emt 0:05:04]} Qh4 {[%emt 0:08:14]} 26. c4 {[%emt 0:04:35]} Nxd4 {[%emt 0:01:44]} 27. Rxe8 {[%emt 0:05:26]} Rxe8 {[%emt 0:00:38]} 28. Bxd4 {[%emt 0:04:29]} Bxd4 {[%emt 0:00:09]} 29. Rd1 {[%emt 0:02:22]} Qxf2+ {[%emt 0:00:06]} 30. Kd2 {[%emt 0:00:03]} Rxe2+ {[%emt 0:00:19]} 0-1

[Event "26th Abu Dhabi Master 2019"]
[Site "Abu Dhabi"]
[Date "2019.08.08"]
[Round "7.28"]
[White "Kiriakov, Petr"]
[Black "Nitish Belurkar"]
[Result "1/2-1/2"]
[ECO "E30"]
[WhiteElo "2516"]
[BlackElo "2302"]
[Annotator "ChessBase"]
[PlyCount "67"]
[EventDate "2019.08.02"]
[EventType "swiss"]
[EventCountry "UAE"]
[SourceTitle "playchess.com"]
[Source "ChessBase"]
[SourceQuality "1"]
[TimeControl "5400+30"]

1. d4 {[%emt 0:00:00]} Nf6 {[%emt 0:00:00]} 2. c4 {[%emt 0:00:00]} e6 {[%emt 0:00:00]} 3. Nc3 {[%emt 0:00:02]} Bb4 {[%emt 0:00:00]} 4. Bg5 {[%emt 0:03:30]} h6 {[%emt 0:01:58]} 5. Bh4 {[%emt 0:00:10]} O-O {[%emt 0:04:28]} 6. e3 {[%emt 0:03:57]} d6 {[%emt 0:01:02]} 7. Bd3 {[%emt 0:07:03]} Nbd7 {[%emt 0:02:43]} 8. Nge2 {[%emt 0:01:10]} b6 {[%emt 0:01:31]} 9. O-O {[%emt 0:01:22]} Bb7 {[%emt 0:04:54]} 10. f3 {[%emt 0:15:23]} d5 {[%emt 0:05:05]} 11. cxd5 {[%emt 0:11:12]} exd5 {[%emt 0:01:25]} 12. Rc1 {[%emt 0:10:06]} Be7 {[%emt 0:06:59]} 13. Kh1 {[%emt 0:03:34]} c5 {[%emt 0:03:56]} 14. Bb1 {[%emt 0:06:08]} Re8 {[%emt 0:04:01]} 15. Bf2 {[%emt 0:01:25]} Rc8 {[%emt 0:04:24]} 16. Ng3 {[%emt 0:01:17]} Bf8 {[%emt 0:09:31]} 17. Re1 {[%emt 0:03:40]} a6 {[%emt 0:02:06]} 18. a3 {[%emt 0:02:45]} g6 {[%emt 0:02:43]} 19. e4 {[%emt 0:03:15]} cxd4 {[%emt 0:03:29]} 20. Bxd4 {[%emt 0:00:07]} dxe4 {[%emt 0:00:14]} 21. Ncxe4 {[%emt 0:01:02]} Nxe4 {[%emt 0:00:53]} 22. Bxe4 {[%emt 0:01:21]} Bxe4 {[%emt 0:04:37]} 23. Rxc8 {[%emt 0:01:11]} Qxc8 {[%emt 0:00:13]} 24. Nxe4 {[%emt 0:00:05]} Re6 {[%emt 0:02:35]} 25. Bc3 {[%emt 0:01:57]} Qc6 {[%emt 0:02:40]} 26. Qd4 {[%emt 0:05:38]} f5 {[%emt 0:04:02]} 27. Qh8+ {[%emt 0:03:25]} Kf7 {[%emt 0:00:08]} 28. Qh7+ {[%emt 0:00:43]} Ke8 {[%emt 0:00:09]} 29. Nf6+ {[%emt 0:00:24]} Kd8 {[%emt 0:05:03]} 30. Rxe6 {[%emt 0:07:27]} Qxe6 {[%emt 0:00:05]} 31. Qh8 {[%emt 0:00:14]} Kc7 {[%emt 0:01:46]} 32. Nxd7 {[%emt 0:00:57]} Qxd7 {[%emt 0:00:04]} 33. Be5+ {[%emt 0:00:45]} Bd6 {[%emt 0:04:16]} 34. h3 1/2-1/2